fUSD/lending_fUSD_20240615
["ID","MTS","AMOUNT","RATE_DAILY","PERIOD"]
[329522946,1718415047829,-500.0,0.00023285,3]
[329522947,1718415047848,-500.0,0.00023285,3]
[329522948,1718415047861,-366.38463145,0.00023285,3]
[329522949,1718415047880,-500.0,0.00023285,3]
[329522950,1718415047893,-500.0,0.00023285,3]
[329522951,1718415047908,-500.0,0.00023285,3]
[329522952,1718415047937,-500.0,0.00023285,3]
[329522953,1718415047954,-500.0,0.00023285,3]
[329522954,1718415047980,-500.0,0.00023285,3]
[329522955,1718415048011,-500.0,0.00023285,3]
[329522956,1718415048036,-442.35584971,0.00023286,3]
[329522957,1718415048049,-437.11011358,0.00023286,3]
[329522958,1718415048062,-156.90145977,0.00023458,2]
[329522959,1718415048075,-344.18,0.00023548,3]
[329522960,1718415048095,-500.0,0.00023558,3]
[329522961,1718415048106,-500.0,0.00023558,3]
[329522962,1718415048118,-500.0,0.00023558,3]
[329522963,1718415048132,-500.0,0.00023558,3]
[329522964,1718415048155,-500.0,0.00023558,3]
[329522965,1718415048166,-500.0,0.00023558,3]
[329522966,1718415048181,-418.18,0.00023558,3]
[329522967,1718415048195,-500.0,0.00023558,3]
[329522968,1718415048208,-600.63,0.00023558,3]
[329522969,1718415048224,-500.0,0.00023558,3]
[329522970,1718415048236,-500.0,0.00023558,3]
[329522971,1718415048248,-500.0,0.00023558,3]
[329522972,1718415048260,-467.81,0.00023558,3]
[329522973,1718415048271,-500.0,0.00023558,3]
[329522974,1718415048282,-500.0,0.00023558,3]
[329522975,1718415048294,-500.0,0.00023558,3]
[329522976,1718415048314,-500.0,0.00023558,3]
[329522977,1718415048352,-500.0,0.00023558,3]
[329522978,1718415048365,-500.0,0.00023558,3]
[329522979,1718415048386,-500.0,0.00023558,3]
[329522980,1718415048413,-150.0,0.00023558,3]
[329522981,1718415048425,-420.85767591,0.00023558,3]
[329522982,1718415048441,-500.0,0.00023558,3]
[329522983,1718415048463,-500.0,0.00023558,3]
[329522984,1718415048489,-616.76670531,0.00023558,3]
[329522985,1718415048509,-500.0,0.00023558,3]
[329522987,1718415048523,-500.0,0.00023558,3]
[329522988,1718415048540,-235.93857792,0.00023558,3]
[329522989,1718415048568,-500.0,0.00023558,3]
[329522990,1718415048600,-4846.32,0.00023558,3]
[329522991,1718415048632,-500.0,0.00023558,3]
[329522992,1718415048645,-630.67,0.00023558,3]
[329522993,1718415048657,-500.0,0.00023558,3]
[329522994,1718415048671,-500.0,0.00023558,3]
[329522995,1718415048682,-500.0,0.00023558,3]
[329522996,1718415048695,-500.0,0.00023558,3]
[329522997,1718415048720,-500.0,0.00023558,3]
[329522998,1718415048733,-500.0,0.00023558,3]
[329522999,1718415048747,-500.0,0.00023558,3]
[329523000,1718415048759,-500.0,0.00023558,3]
[329523001,1718415048771,-541.16,0.00023558,3]
[329523002,1718415048801,-553.08,0.00023558,3]
[329523003,1718415048822,-500.0,0.00023558,3]
[329523004,1718415048852,-500.0,0.00023558,3]
[329523005,1718415048870,-777.12,0.00023558,3]
[329523006,1718415048885,-536.37434974,0.00023558,2]
[329523007,1718415048922,-500.0,0.00023558,3]
[329523008,1718415048966,-836.55,0.00023558,3]
[329523009,1718415048979,-812.43,0.00023558,3]
[329523010,1718415049019,-512.37,0.00023558,3]
[329523011,1718415049050,-799.16,0.00023558,3]
[329523012,1718415049064,-500.0,0.00023558,3]
[329523014,1718415049077,-500.0,0.00023558,3]
[329523016,1718415049098,-940.24,0.00023558,3]
[329523017,1718415049109,-500.0,0.00023558,3]
[329523018,1718415049121,-500.0,0.00023558,3]
[329523019,1718415049154,-500.0,0.00023558,3]
[329523020,1718415049175,-500.0,0.00023558,3]
[329523021,1718415049204,-500.0,0.00023558,3]
[329523022,1718415049242,-500.0,0.00023558,3]
[329523023,1718415049288,-500.0,0.00023558,3]
[329523024,1718415049311,-500.0,0.00023558,3]
[329523025,1718415049336,-500.0,0.00023558,3]
[329523026,1718415049349,-500.0,0.00023558,3]
[329523027,1718415049366,-720.23,0.00023558,3]
[329523028,1718415049408,-500.0,0.00023558,3]
[329523029,1718415049420,-500.0,0.00023558,3]
[329523030,1718415049436,-500.0,0.00023558,3]
[329523031,1718415049447,-500.0,0.00023558,3]
[329523032,1718415049462,-500.0,0.00023558,3]
[329523033,1718415049474,-500.0,0.00023558,3]
[329523034,1718415049489,-500.0,0.00023558,3]
[329523035,1718415049521,-500.0,0.00023558,3]
[329523036,1718415049532,-500.0,0.00023558,3]
[329523037,1718415049546,-500.0,0.00023558,3]
[329523038,1718415049557,-500.0,0.00023558,3]
[329523039,1718415049572,-500.0,0.00023558,3]
[329523040,1718415049589,-500.0,0.00023558,3]
[329523041,1718415049601,-500.0,0.00023558,3]
[329523042,1718415049620,-500.0,0.00023558,3]
[329523043,1718415049631,-500.0,0.00023558,3]
[329523044,1718415049653,-500.0,0.00023558,3]
[329523045,1718415049670,-500.0,0.00023558,3]
[329523046,1718415049683,-500.0,0.00023558,3]
[329523047,1718415049702,-580.12,0.00023558,3]
[329523048,1718415049720,-500.0,0.00023558,3]
[329523049,1718415049731,-500.0,0.00023558,3]
[329523050,1718415049742,-500.0,0.00023558,3]
[329523051,1718415049759,-500.0,0.00023558,3]
[329523052,1718415049774,-500.0,0.00023558,3]
[329523053,1718415049796,-509.65475514,0.00023558,3]
[329523054,1718415049809,-500.0,0.00023558,3]
[329523055,1718415049823,-500.0,0.00023558,3]
[329523056,1718415049837,-500.0,0.00023558,3]
[329523057,1718415049854,-500.0,0.00023558,3]
[329523058,1718415049871,-500.0,0.00023558,3]
[329523059,1718415049889,-500.0,0.00023558,3]
[329523060,1718415049913,-500.0,0.00023558,3]
[329523061,1718415049928,-1902.87,0.00023558,3]
[329523062,1718415049942,-500.0,0.00023558,3]
[329523063,1718415049953,-500.0,0.00023558,3]
[329523064,1718415049970,-500.0,0.00023558,3]
[329523065,1718415049984,-500.0,0.00023558,3]
[329523066,1718415049998,-508.58831232,0.00023558,3]
[329523067,1718415050009,-1149.89,0.00023558,3]
[329523068,1718415050020,-500.0,0.00023558,3]
[329523069,1718415050034,-500.0,0.00023558,3]
[329523070,1718415050050,-516.12105567,0.00023558,3]
[329523071,1718415050065,-500.0,0.00023558,3]
[329523072,1718415050077,-696.12,0.00023558,3]
[329523073,1718415050105,-500.0,0.00023558,3]
[329523074,1718415050130,-510.90520807,0.00023558,3]
[329523075,1718415050153,-500.0,0.00023558,3]
[329523076,1718415050176,-194.2962776,0.00023558,3]
[329523077,1718415050188,-500.0,0.00023558,3]
[329523078,1718415050209,-524.61,0.00023558,3]
[329523079,1718415050220,-515.00479294,0.00023558,3]
[329523080,1718415050235,-500.0,0.00023558,3]
[329523081,1718415050251,-500.0,0.00023558,3]
[329523082,1718415050276,-781.18,0.00023558,3]
[329523083,1718415050289,-511.29579425,0.00023558,3]
[329523084,1718415050322,-510.3709986,0.00023558,3]
[329523085,1718415050333,-508.4649239,0.00023558,3]
[329523086,1718415050345,-636.62029891,0.00023558,3]
[329523087,1718415050384,-602.14339246,0.00023558,3]
[329523088,1718415050445,-532.64772484,0.00023558,3]
[329523089,1718415050465,-809.22,0.00023558,3]
[329523090,1718415050477,-500.0,0.00023558,3]
[329523091,1718415050488,-500.0,0.00023558,3]
[329523092,1718415050499,-500.0,0.00023558,3]
[329523093,1718415050509,-500.0,0.00023558,3]
[329523094,1718415050520,-500.0,0.00023558,3]
[329523095,1718415050531,-514.03358704,0.00023558,3]
[329523096,1718415050545,-2110.15,0.00023558,3]
[329523097,1718415050557,-500.0,0.00023558,3]
[329523098,1718415050569,-500.0,0.00023558,3]
[329523099,1718415050595,-500.0,0.00023558,3]
[329523100,1718415050615,-81.36863168,0.00023558,3]
[329523101,1718415050713,-418.63136832,0.00023558,3]
[329523102,1718415050725,-81.36827358,0.00023558,3]
[329523103,1718415050741,-306.21779093,0.00023558,3]
[329523104,1718415050754,-7.61623084,0.00023558,3]
[329523105,1718415050789,-500.0,0.00023558,3]
[329523106,1718415050804,-500.0,0.00023558,3]
[329523107,1718415050835,-500.0,0.00023558,3]
[329523108,1718415050846,-500.0,0.00023558,3]
[329523109,1718415050857,-634.29,0.00023558,3]
[329523110,1718415050892,-498.48,0.00023559,3]
[329523111,1718415050903,-554.69,0.00023559,3]
[329523112,1718415050916,-500.0,0.00023559,3]
[329523113,1718415050933,-500.0,0.00023559,3]
[329523114,1718415050943,-500.0,0.00023559,3]
[329523115,1718415050964,-500.0,0.00023559,3]
[329523117,1718415050992,-500.0,0.00023559,3]
[329523119,1718415051034,-500.0,0.00023559,3]
[329523120,1718415051046,-500.0,0.00023559,3]
[329523123,1718415051062,-500.0,0.00023559,3]
[329523124,1718415051080,-500.0,0.00023559,3]
[329523126,1718415051105,-500.0,0.00023559,3]
[329523128,1718415051120,-343.25,0.00023559,3]
[329523129,1718415051131,-500.0,0.00023559,3]
[329523131,1718415051156,-500.0,0.00023559,3]
[329523133,1718415051173,-500.0,0.00023559,3]
[329523135,1718415051191,-500.0,0.00023559,3]
[329523137,1718415051209,-202.71966021,0.00023733,2]
[329523138,1718415051232,-185.728,0.00023748,2]
[329523140,1718415051250,-188.12,0.00023777,2]
[329523142,1718415051272,-219.82660141,0.00023823,3]
[329523143,1718415051304,-500.0,0.00023831,3]
[329523144,1718415051315,-500.0,0.00023831,3]
[329523145,1718415051368,-199.19125754,0.00023831,3]
[329523146,1718415051491,-393.76878671,0.00023558,3]
[329523147,1718415051522,-106.23121329,0.00023558,3]
[329523148,1718415051557,-300.80874246,0.00023831,3]
[329523149,1718415051650,-500.0,0.00023831,3]
[329523150,1718415051668,-93.79008918,0.00023831,3]
[329523151,1718415051692,-442.00991082,0.00023831,3]
[329523152,1718415051704,-41.86728101,0.00023831,3]
[329523153,1718415051803,-428.55791539,0.00023831,3]
[329523154,1718415051816,-29.5748036,0.00023831,3]
[329523155,1718415051826,-1088.8,0.00023831,3]
[329523156,1718415051838,-3671.28,0.00023831,3]
[329523157,1718415051853,-2246.23,0.00023831,3]
[329523158,1718415051876,-809.99,0.00023831,3]
[329523159,1718415051889,-1883.35,0.00023831,3]
[329523160,1718415051902,-1711.97753975,0.00023831,3]
[329523161,1718415051916,-820.99246025,0.00023831,3]
[329523162,1718415051933,-540.28,0.00023831,3]
[329523163,1718415051948,-500.0,0.00023831,3]
[329523164,1718415051973,-689.25973701,0.00023831,3]
[329523165,1718415052052,-504.4283079,0.00023831,3]
[329523166,1718415052067,-179.17195509,0.00023831,3]
[329523167,1718415052080,-650.61,0.00023831,3]
[329523168,1718415052094,-500.0,0.00023831,3]
[329523169,1718415052107,-856.97104491,0.00023831,3]
[329523170,1718415052127,-287.90895509,0.00023831,3]
[329523171,1718415052330,-500.0,0.00023831,3]
[329523172,1718415052354,-1516.85,0.00023831,3]
[329523173,1718415052382,-500.0,0.00023831,3]
[329523174,1718415052396,-1010.08,0.00023831,3]
[329523175,1718415052408,-1011.92,0.00023831,3]
[329523176,1718415052419,-2210.61,0.00023831,3]
[329523177,1718415052434,-3006.11,0.00023831,3]
[329523178,1718415052449,-500.0,0.00023831,3]
[329523179,1718415052462,-165.50021858,0.00023831,3]
[329523180,1718415052475,-334.49978142,0.00023831,3]
[329523181,1718415052486,-500.0,0.00023831,3]
[329523182,1718415052497,-71.22793615,0.00023831,3]
[329523183,1718415052542,-524.35130645,0.00023831,3]
[329523185,1718415577778,605.35,0.00024329,30]
[329523186,1718415811671,173.12,0.00011124,2]
[329523187,1718415957337,2000.0,0.00028,120]
[329523188,1718416032199,-263.53,0.00012193,2]
[329523189,1718416032244,-41.50433631,0.00013429,2]
[329523191,1718416074210,864.0,0.00028,90]
[329523192,1718416110797,554.9,0.00024329,30]
[329523193,1718416141400,2358.0,0.00028,120]
[329523196,1718416163155,-365.72100783,0.0001346,2]
[329523197,1718416163218,-5800.0,0.00013461,2]
[329523198,1718416163258,-150.0,0.00013468,2]
[329523199,1718416163297,-5800.0,0.00013469,2]
[329523200,1718416163332,-5800.0,0.00013478,2]
[329523201,1718416163365,-5030.07433154,0.00013486,2]
[329523202,1718416164121,-310.0,0.00013486,2]
[329523224,1718416233907,-459.92566846,0.00013486,2]
[329523225,1718416233943,-5410.51491455,0.00013495,2]
[329523226,1718416233962,-389.48508545,0.00013495,2]
[329523227,1718416233973,-5800.0,0.00013503,2]
[329523228,1718416233992,-641.760994,0.00013512,2]
[329523229,1718416234413,-979.38,0.00013512,2]
[329523230,1718416234440,-2184.26646072,0.00013512,2]
[329523231,1718416234455,-1994.59254528,0.00013512,2]
[329523232,1718416234472,-3125.43365825,0.0001352,2]
[329523233,1718416234938,-1891.95350454,0.0001352,2]
[329523278,1718416241450,-782.61283721,0.0001352,2]
[329523279,1718416241464,-363.34,0.0001352,2]
[329523280,1718416241500,-5800.0,0.00013529,2]
[329523281,1718416241529,-5800.0,0.00013537,2]
[329523282,1718416241565,-22809.56,0.00013634,2]
[329523283,1718416241596,-191.9,0.00013699,2]
[329523284,1718416241610,-200.0,0.00013711,2]
[329523285,1718416241670,-2827.94,0.00013711,2]
[329523286,1718416241695,-250.0,0.00013795,2]
[329523287,1718416241720,-250.0,0.00013802,2]
[329523288,1718416241756,-202.05,0.00013815,2]
[329523289,1718416241771,-366.33703167,0.00013998,2]
[329523290,1718416241789,-1036.29633023,0.00013999,2]
[329523291,1718416241808,-30482.13732087,0.00014,2]
[329523293,1718416244398,-15752.14051684,0.00014,2]
[329523294,1718416244412,-645.21013908,0.00014,2]
[329523295,1718416244431,-47890.19204931,0.00014,2]
[329523296,1718416244641,-2323.32329666,0.00014,2]
[329523297,1718416244980,-49780.43770584,0.00014,2]
[329523298,1718416245817,-14164.76131448,0.00014,2]
[329523299,1718416245858,-571.75,0.00014015,2]
[329523300,1718416245886,-500.0,0.00014044,2]
[329523301,1718416245903,-571.81,0.00014053,2]
[329523302,1718416245964,-183.46,0.00014426,2]
[329523303,1718416245993,-263.53,0.00014456,2]
[329523304,1718416246009,-180.0,0.00014815,2]
[329523305,1718416246021,-210.75092467,0.000149,2]
[329523306,1718416246033,-197.23107426,0.00014927,2]
[329523307,1718416246051,-331.01203933,0.00014968,2]
[329523308,1718416246062,-341.3298147,0.00014968,2]
[329523309,1718416246082,-151.18,0.0001499,2]
[329523310,1718416246094,-151.18,0.0001499,2]
[329523311,1718416246140,-194.41121435,0.0001499,2]
[329523312,1718416246158,-164303.62588157,0.00015,2]
[329523313,1718416246178,-639.15234642,0.00015,2]
[329523314,1718416246210,-2917.84012743,0.00015,2]
[329523316,1718416248578,-4254.11158289,0.00015,2]
[329523317,1718416249060,-1011.6724071,0.00015,2]
[329523318,1718416250372,-3411.05764999,0.00015,2]
[329523334,1718416645084,508.65,0.00024329,30]
[329523336,1718416664158,463.4264975,0.00025,30]
[329523341,1718417245293,-155.00087446,0.00013537,2]
[329523342,1718417274018,466.26,0.00024329,30]
[329523344,1718417372361,219.33225758,0.00013438,2]
[329523348,1718417433726,-2053.2524474,0.00013537,2]
[329523349,1718417433956,-3591.74667814,0.00013537,2]
[329523350,1718417433968,-1352.0917744,0.00013537,2]
[329523351,1718417434375,-2.09753583,0.00013537,2]
[329523360,1718417439473,-4445.81068977,0.00013537,2]
[329523361,1718417439500,-254.00251244,0.00014848,2]
[329523362,1718417439512,-1056.49181,0.0001485,2]
[329523363,1718417439536,-554.9468301,0.00014998,2]
[329523364,1718417439548,-1001.80906208,0.00014998,2]
[329523365,1718417439587,-155.25214288,0.00014999,2]
[329523366,1718417439608,-1445.63685371,0.00014999,2]
[329523367,1718417439638,-9665.70978385,0.00015,2]
[329523380,1718417444769,-287.43499999,0.00015,2]
[329523381,1718417444796,-708.12349842,0.00015,2]
[329523382,1718417447137,-606933.79955911,0.00015,2]
[329523383,1718417447153,-237.17,0.00017014,2]
[329523384,1718417447165,-1056.49182,0.0001735,2]
[329523385,1718417447178,-453.74,0.00018672,2]
[329523386,1718417447190,-166.85,0.0001879,2]
[329523387,1718417447202,-380.53,0.00018928,2]
[329523388,1718417447220,-457.4,0.00019013,2]
[329523389,1718417447235,-250.0,0.00019034,2]
[329523390,1718417447247,-202.05,0.0001915,2]
[329523391,1718417447263,-500.0,0.00019178,2]
[329523392,1718417447277,-500.0,0.00019178,2]
[329523393,1718417447289,-500.0,0.00019178,2]
[329523394,1718417447303,-500.0,0.00019178,2]
[329523395,1718417447320,-500.0,0.00019178,2]
[329523396,1718417447343,-307.13561752,0.00019178,2]
[329523397,1718417447383,-500.0,0.00019178,2]
[329523398,1718417447402,-500.0,0.00019178,2]
[329523399,1718417447422,-500.0,0.00019178,2]
[329523400,1718417447448,-500.0,0.00019178,2]
[329523401,1718417447461,-417.78100662,0.00019178,2]
[329523402,1718417447484,-649.59764523,0.00019178,2]
[329523403,1718417447497,-500.0,0.00019178,2]
[329523404,1718417447514,-500.0,0.00019178,2]
[329523405,1718417447527,-500.0,0.00019178,2]
[329523406,1718417447543,-500.0,0.00019178,2]
[329523407,1718417447554,-500.0,0.00019178,2]
[329523408,1718417447568,-500.0,0.00019178,2]
[329523409,1718417447584,-500.0,0.00019178,2]
[329523410,1718417447606,-500.0,0.00019178,2]
[329523411,1718417447622,-500.0,0.00019178,2]
[329523412,1718417447644,-500.0,0.00019178,2]
[329523413,1718417447655,-310.22301945,0.00019178,2]
[329523414,1718417447667,-500.0,0.00019178,2]
[329523415,1718417447678,-500.0,0.00019178,2]
[329523416,1718417447696,-500.0,0.00019178,2]
[329523417,1718417447716,-500.0,0.00019178,2]
[329523418,1718417447734,-156.12294763,0.00019178,2]
[329523419,1718417447750,-500.0,0.00019178,2]
[329523420,1718417447775,-500.0,0.00019178,2]
[329523421,1718417447792,-500.0,0.00019178,2]
[329523422,1718417447813,-500.0,0.00019178,2]
[329523423,1718417447837,-500.0,0.00019178,2]
[329523424,1718417447862,-500.0,0.00019178,2]
[329523425,1718417447884,-500.0,0.00019178,2]
[329523426,1718417447897,-500.0,0.00019178,2]
[329523427,1718417447910,-500.0,0.00019178,2]
[329523429,1718417447931,-500.0,0.00019178,2]
[329523430,1718417447952,-500.0,0.00019178,2]
[329523432,1718417447966,-500.0,0.00019178,2]
[329523434,1718417447992,-500.0,0.00019178,2]
[329523436,1718417448003,-500.0,0.00019178,2]
[329523438,1718417448017,-500.0,0.00019178,2]
[329523441,1718417448040,-500.0,0.00019178,2]
[329523443,1718417448057,-500.0,0.00019178,2]
[329523444,1718417448084,-500.0,0.00019178,2]
[329523445,1718417448096,-500.0,0.00019178,2]
[329523446,1718417448116,-500.0,0.00019178,2]
[329523447,1718417448129,-500.0,0.00019178,2]
[329523448,1718417448142,-500.0,0.00019178,2]
[329523449,1718417448158,-500.0,0.00019178,2]
[329523450,1718417448174,-635.61320106,0.00019178,2]
[329523451,1718417448186,-500.0,0.00019178,2]
[329523452,1718417448197,-500.0,0.00019178,2]
[329523453,1718417448211,-500.0,0.00019178,2]
[329523454,1718417448233,-500.0,0.00019178,2]
[329523455,1718417448257,-500.0,0.00019178,2]
[329523456,1718417448279,-500.0,0.00019178,2]
[329523457,1718417448297,-500.0,0.00019178,2]
[329523458,1718417448339,-500.0,0.00019178,2]
[329523459,1718417448351,-500.0,0.00019178,2]
[329523460,1718417448391,-500.0,0.00019178,2]
[329523461,1718417448406,-500.0,0.00019178,2]
[329523462,1718417448427,-500.0,0.00019178,2]
[329523463,1718417448440,-500.0,0.00019178,2]
[329523464,1718417448460,-500.0,0.00019178,2]
[329523465,1718417448471,-500.0,0.00019178,2]
[329523466,1718417448483,-500.0,0.00019178,2]
[329523467,1718417448507,-211.65275704,0.00019178,2]
[329523468,1718417448540,-500.0,0.00019178,2]
[329523469,1718417448553,-500.0,0.00019178,2]
[329523470,1718417448571,-500.0,0.00019178,2]
[329523471,1718417448590,-500.0,0.00019178,2]
[329523472,1718417448618,-500.0,0.00019178,2]
[329523473,1718417448637,-500.0,0.00019178,2]
[329523474,1718417448656,-500.0,0.00019178,2]
[329523475,1718417448671,-500.0,0.00019178,2]
[329523476,1718417448706,-500.0,0.00019178,2]
[329523477,1718417448746,-500.0,0.00019178,2]
[329523478,1718417448764,-500.0,0.00019178,2]
[329523479,1718417448793,-520.19421262,0.00019178,2]
[329523480,1718417448809,-500.0,0.00019178,2]
[329523481,1718417448829,-500.0,0.00019178,2]
[329523482,1718417448860,-500.0,0.00019178,2]
[329523483,1718417448877,-500.0,0.00019178,2]
[329523484,1718417448890,-500.0,0.00019178,2]
[329523485,1718417448904,-500.0,0.00019178,2]
[329523486,1718417448939,-500.0,0.00019178,2]
[329523487,1718417448950,-500.0,0.00019178,2]
[329523488,1718417448964,-500.0,0.00019178,2]
[329523489,1718417448988,-500.0,0.00019178,2]
[329523490,1718417449005,-500.0,0.00019178,2]
[329523491,1718417449019,-500.0,0.00019178,2]
[329523492,1718417449034,-500.0,0.00019178,2]
[329523493,1718417449055,-500.0,0.00019178,2]
[329523494,1718417449105,-500.0,0.00019178,2]
[329523495,1718417449122,-500.0,0.00019178,2]
[329523496,1718417449147,-500.0,0.00019178,2]
[329523497,1718417449172,-250.0,0.00019178,2]
[329523498,1718417449189,-500.0,0.00019178,2]
[329523499,1718417449209,-164.7093691,0.00019178,2]
[329523500,1718417449241,-237.17,0.00019278,2]
[329523501,1718417449264,-1056.49181,0.0001985,2]
[329523502,1718417449284,-226.79813277,0.000201,2]
[329523503,1718417449304,-300.0,0.0002028,2]
[329523504,1718417449317,-1250.0,0.00021,2]
[329523505,1718417449329,-453.74,0.00021006,2]
[329523506,1718417449342,-175.06,0.00021119,2]
[329523507,1718417449353,-457.4,0.0002139,2]
[329523508,1718417449367,-237.17,0.00021542,2]
[329523509,1718417449392,-300.0,0.0002165,2]
[329523510,1718417449411,-380.53,0.00021667,2]
[329523511,1718417449430,-1267.12705362,0.000218,2]
[329523512,1718417449443,-235.65079671,0.00021816,2]
[329523513,1718417449456,-10000.0,0.00021817,2]
[329523514,1718417449470,-165.1766038,0.00021817,2]
[329523515,1718417449481,-181.61922412,0.00021817,2]
[329523516,1718417449498,-263.52919638,0.00021817,2]
[329523517,1718417449509,-180.79515146,0.00021817,2]
[329523518,1718417449520,-151.14,0.00021907,2]
[329523519,1718417449531,-213.27277507,0.00021916,2]
[329523520,1718417449550,-333.9110567,0.00021916,2]
[329523521,1718417449561,-1408.81971905,0.00021917,2]
[329523522,1718417449573,-500.0,0.00021917,2]
[329523523,1718417449585,-500.0,0.00021917,2]
[329523524,1718417449626,-505.41379436,0.00021917,2]
[329523525,1718417449641,-502.76195894,0.00021917,2]
[329523526,1718417449655,-500.0,0.00021917,2]
[329523527,1718417449670,-502.51575723,0.00021917,2]
[329523528,1718417449683,-513.51971569,0.00021917,2]
[329523529,1718417449694,-500.0,0.00021917,2]
[329523530,1718417449707,-500.0,0.00021917,2]
[329523531,1718417449719,-510.98012887,0.00021917,2]
[329523532,1718417449732,-500.0,0.00021917,2]
[329523533,1718417449746,-500.0,0.00021917,2]
[329523534,1718417449757,-500.0,0.00021917,2]
[329523535,1718417449771,-519.55774306,0.00021917,2]
[329523536,1718417449788,-500.0,0.00021917,2]
[329523537,1718417449803,-516.63140781,0.00021917,2]
[329523538,1718417449816,-500.0,0.00021917,2]
[329523539,1718417449827,-512.46474096,0.00021917,2]
[329523540,1718417449841,-500.0,0.00021917,2]
[329523541,1718417449854,-516.17507421,0.00021917,2]
[329523542,1718417449866,-510.68204287,0.00021917,2]
[329523543,1718417449892,-500.0,0.00021917,2]
[329523544,1718417449904,-521.18963409,0.00021917,2]
[329523545,1718417449919,-520.96746636,0.00021917,2]
[329523546,1718417449942,-500.0,0.00021917,2]
[329523547,1718417449957,-540.45226927,0.00021917,2]
[329523548,1718417449970,-500.0,0.00021917,2]
[329523549,1718417449982,-500.0,0.00021917,2]
[329523550,1718417450005,-500.0,0.00021917,2]
[329523552,1718417450018,-500.0,0.00021917,2]
[329523554,1718417450029,-500.0,0.00021917,2]
[329523556,1718417450056,-521.40477265,0.00021917,2]
[329523558,1718417450067,-500.0,0.00021917,2]
[329523559,1718417450078,-500.0,0.00021917,2]
[329523561,1718417450093,-531.56527472,0.00021917,2]
[329523564,1718417450104,-187.35514538,0.00021917,2]
[329523566,1718417450143,-525.0356795,0.00021917,2]
[329523568,1718417450183,-564.26657262,0.00021917,2]
[329523569,1718417450220,-500.0,0.00021917,2]
[329523571,1718417450235,-500.0,0.00021917,2]
[329523574,1718417450251,-500.0,0.00021917,2]
[329523576,1718417450266,-500.0,0.00021917,2]
[329523577,1718417450285,-200.0,0.00021917,2]
[329523579,1718417450297,-500.0,0.00021917,2]
[329523581,1718417450316,-169.36968523,0.00021917,2]
[329523583,1718417450343,-513.37957186,0.00021917,2]
[329523585,1718417450376,-511.93460046,0.00021917,2]
[329523587,1718417450393,-500.0,0.00021917,2]
[329523588,1718417450411,-500.0,0.00021917,2]
[329523590,1718417450426,-500.0,0.00021917,2]
[329523591,1718417450452,-500.0,0.00021917,2]
[329523593,1718417450472,-508.38691252,0.00021917,2]
[329523595,1718417450484,-400.37023587,0.00021917,2]
[329523599,1718417450518,-319.59470751,0.00021917,2]
[329523602,1718417450536,-500.0,0.00021917,2]
[329523604,1718417450548,-500.0,0.00021917,2]
[329523605,1718417450561,-500.0,0.00021917,2]
[329523608,1718417450590,-500.0,0.00021917,2]
[329523610,1718417450606,-500.0,0.00021917,2]
[329523612,1718417450618,-500.76824381,0.00021917,2]
[329523614,1718417450630,-501.23679644,0.00021917,2]
[329523615,1718417450653,-500.0,0.00021917,2]